[Event "Reykjavik Open 2025"]
[Site "Reykjavik, Iceland"]
[Date "2025.04.14"]
[Round "8.32"]
[White "Kavutskiy, Kostya"]
[Black "Sokolovsky, Yahli"]
[Result "1/2-1/2"]
[WhiteElo "2351"]
[WhiteTitle "IM"]
[WhiteFideId "2026384"]
[BlackElo "2546"]
[BlackTitle "GM"]
[BlackFideId "2820242"]
[TimeControl "90+30 +30 after 40 moves"]
[Variant "Standard"]
[ECO "B94"]
[Opening "Sicilian Defense: Najdorf Variation"]
[StudyName "Round 8"]
1. e4 { [%clk 1:30:40] } 1... c5 { [%clk 1:30:54] } 2. Nf3 { [%clk 1:30:53] } 2... d6 { [%clk 1:31:17] } 3. d4 { [%clk 1:31:14] } 3... cxd4 { [%clk 1:31:42] } 4. Nxd4 { [%clk 1:31:35] } 4... Nf6 { [%clk 1:32:08] } 5. Nc3 { [%clk 1:31:42] } 5... a6 { [%clk 1:32:32] } 6. Bg5 { [%clk 1:31:37] } 6... Nbd7 { [%clk 1:32:21] } 7. Bc4 { [%clk 1:31:40] } 7... Qb6 { [%clk 1:32:39] } 8. Bb3 { [%clk 1:31:53] } 8... e6 { [%clk 1:32:51] } 9. f3 { [%clk 1:31:51] } 9... Be7 { [%clk 1:32:31] } 10. Be3 { [%clk 1:31:41] } 10... Nc5 { [%clk 1:32:44] } 11. g4 { [%clk 1:31:21] } 11... Qc7 { [%clk 1:29:49] } 12. Qd2 { [%clk 1:29:48] } 12... b5 { [%clk 1:29:59] } 13. a3 { [%clk 1:27:43] } 13... Bd7 { [%clk 1:27:40] } 14. Ba2 { [%clk 1:25:25] } 14... Rb8 { [%clk 1:17:33] } 15. b4 { [%clk 1:10:38] } 15... Nb7 { [%clk 1:16:57] } 16. g5 { [%clk 1:10:21] } 16... Nh5 { [%clk 1:16:54] } 17. Nce2 { [%clk 1:04:42] } 17... a5 { [%clk 1:05:36] } 18. Ng3 { [%clk 0:52:16] } 18... Nxg3 { [%clk 1:05:47] } 19. hxg3 { [%clk 0:52:40] } 19... d5 { [%clk 0:44:27] } 20. exd5 { [%clk 0:46:07] } 20... Qxg3+ { [%clk 0:35:20] } 21. Ke2 { [%clk 0:39:57] } 21... exd5 { [%clk 0:33:50] } 22. Bf4 { [%clk 0:37:56] } 22... Qg2+ { [%clk 0:34:09] } 23. Ke3 { [%clk 0:36:24] } 23... Qxd2+ { [%clk 0:34:12] } 24. Kxd2 { [%clk 0:36:52] } 24... Bd6 { [%clk 0:29:08] } 25. Rae1+ { [%clk 0:33:25] } 25... Kd8 { [%clk 0:29:15] } 26. Bxd6 { [%clk 0:33:41] } 26... Nxd6 { [%clk 0:29:43] } 27. Bxd5 { [%clk 0:33:00] } 27... Rc8 { [%clk 0:25:19] } 28. c3 { [%clk 0:31:30] } 28... Rc7 { [%clk 0:18:02] } 29. Rh4 { [%clk 0:20:42] } 29... Ra7 { [%clk 0:16:45] } 30. Reh1 { [%clk 0:15:32] } 30... Re8 { [%clk 0:16:04] } 31. Re1 { [%clk 0:15:09] } 31... Rh8 { [%clk 0:12:07] } 32. Reh1 { [%clk 0:14:33] } 32... Re8 { [%clk 0:11:20] } 33. Re1 { [%clk 0:09:08] } 1/2-1/2

[Event "Reykjavik Open 2025"]
[Site "Reykjavik, Iceland"]
[Date "2025.04.14"]
[Round "8.33"]
[White "Kunin, Vitaly"]
[Black "Petersen, Marcel"]
[Result "1/2-1/2"]
[WhiteElo "2522"]
[WhiteTitle "GM"]
[WhiteFideId "4128737"]
[BlackElo "2185"]
[BlackFideId "12935670"]
[TimeControl "90+30 +30 after 40 moves"]
[Variant "Standard"]
[ECO "A00"]
[Opening "Hungarian Opening"]
[StudyName "Round 8"]
1. g3 { [%clk 1:30:54] } 1... e5 { [%clk 1:30:22] } 2. c4 { [%clk 1:31:11] } 2... Nf6 { [%clk 1:29:58] } 3. Bg2 { [%clk 1:31:23] } 3... c6 { [%clk 1:28:09] } 4. d4 { [%clk 1:31:21] } 4... exd4 { [%clk 1:26:14] } 5. Qxd4 { [%clk 1:31:09] } 5... d5 { [%clk 1:25:57] } 6. cxd5 { [%clk 1:25:41] } 6... cxd5 { [%clk 1:26:01] } 7. Nf3 { [%clk 1:25:54] } 7... Nc6 { [%clk 1:25:20] } 8. Qa4 { [%clk 1:25:33] } 8... Bc5 { [%clk 1:22:17] } 9. O-O { [%clk 1:25:34] } 9... Qb6 { [%clk 1:20:16] } 10. Ne5 { [%clk 1:20:55] } 10... O-O { [%clk 1:18:25] } 11. Nd3 { [%clk 1:19:01] } 11... Be7 { [%clk 1:16:51] } 12. Bg5 { [%clk 1:14:45] } 12... Bf5 { [%clk 1:08:29] } 13. Nc3 { [%clk 1:05:33] } 13... Bxd3 { [%clk 1:03:36] } 14. exd3 { [%clk 1:05:29] } 14... Qxb2 { [%clk 1:03:52] } 15. Rfc1 { [%clk 1:02:26] } 15... Qb4 { [%clk 1:01:20] } 16. Rab1 { [%clk 0:59:04] } 16... Qxa4 { [%clk 0:54:52] } 17. Nxa4 { [%clk 0:59:22] } 17... Na5 { [%clk 0:54:37] } 18. Bxf6 { [%clk 0:50:34] } 18... Bxf6 { [%clk 0:54:58] } 19. Bxd5 { [%clk 0:50:55] } 19... Rac8 { [%clk 0:45:47] } 20. Rxc8 { [%clk 0:48:54] } 20... Rxc8 { [%clk 0:46:12] } 21. Bxb7 { [%clk 0:48:43] } 21... Nxb7 { [%clk 0:45:28] } 22. Rxb7 { [%clk 0:49:01] } 22... g6 { [%clk 0:44:42] } 23. Rxa7 { [%clk 0:48:01] } 23... Rc2 { [%clk 0:42:55] } 24. Rd7 { [%clk 0:47:16] } 24... Rxa2 { [%clk 0:43:12] } 25. Nb6 { [%clk 0:46:07] } 25... Kf8 { [%clk 0:38:26] } 26. Nc4 { [%clk 0:45:39] } 26... h5 { [%clk 0:37:46] } 27. h3 { [%clk 0:43:05] } 27... Rc2 { [%clk 0:36:41] } 28. Kg2 { [%clk 0:40:56] } 28... Ke8 { [%clk 0:35:36] } 29. Rc7 { [%clk 0:39:14] } 29... Kf8 { [%clk 0:35:45] } 30. Rd7 { [%clk 0:38:12] } 30... Ke8 { [%clk 0:36:06] } 31. Rb7 { [%clk 0:38:10] } 31... Kf8 { [%clk 0:34:46] } 32. Ne3 { [%clk 0:35:09] } 32... Rd2 { [%clk 0:33:55] } 33. Rd7 { [%clk 0:35:19] } 33... Ke8 { [%clk 0:33:50] } 34. Rd5 { [%clk 0:35:40] } 34... Ke7 { [%clk 0:33:04] } 35. Nc4 { [%clk 0:35:46] } 35... Rc2 { [%clk 0:28:50] } 36. Kf3 { [%clk 0:33:39] } 36... Ke6 { [%clk 0:28:09] } 37. Rd6+ { [%clk 0:33:57] } 37... Ke7 { [%clk 0:28:22] } 38. Rd5 { [%clk 0:31:02] } 38... Ke6 { [%clk 0:28:38] } 39. Rd6+ { [%clk 0:30:38] } 39... Ke7 { [%clk 0:28:44] } 40. Ra6 { [%clk 0:30:46] } 40... Bd4 { [%clk 0:24:30] } 41. Ne3 { [%clk 0:31:02] } 41... Rd2 { [%clk 0:23:11] } 42. Ke4 { [%clk 0:27:59] } 42... Bxe3 { [%clk 0:23:21] } 43. Kxe3 { [%clk 0:22:44] } 43... Rb2 { [%clk 0:22:48] } 44. h4 { [%clk 0:22:52] } 44... Rc2 { [%clk 0:20:48] } 45. Rb6 { [%clk 0:21:35] } 45... Ra2 { [%clk 0:21:06] } 46. Rb3 { [%clk 0:21:20] } 46... Ke6 { [%clk 0:20:47] } 47. Rb4 { [%clk 0:20:57] } 47... Rc2 { [%clk 0:20:28] } 48. Re4+ { [%clk 0:21:17] } 48... Kd6 { [%clk 0:20:08] } 49. Rc4 { [%clk 0:13:31] } 49... Ra2 { [%clk 0:20:23] } 50. Rc1 { [%clk 0:13:39] } 50... Rb2 { [%clk 0:19:14] } 51. Rd1 { [%clk 0:13:41] } 51... Kd5 { [%clk 0:18:50] } 52. Rd2 { [%clk 0:13:58] } 52... Rb7 { [%clk 0:17:38] } 53. Ra2 { [%clk 0:12:47] } 53... Re7+ { [%clk 0:17:26] } 54. Kf4 { [%clk 0:13:02] } 54... Kd4 { [%clk 0:10:08] } 55. Kg5 { [%clk 0:12:47] } 55... Re5+ { [%clk 0:09:27] } 56. Kh6 { [%clk 0:05:19] } 56... Rf5 { [%clk 0:08:19] } 57. Kg7 { [%clk 0:18:43] } 57... Kxd3 { [%clk 0:38:40] } 58. Ra7 { [%clk 0:18:43] } 58... Ke2 { [%clk 0:38:24] } 59. Rxf7 { [%clk 0:17:24] } 59... Kxf2 { [%clk 0:38:35] } 60. Rxf5+ { [%clk 0:17:00] } 60... gxf5 { [%clk 0:39:00] } 61. Kg6 { [%clk 0:17:16] } 61... Kxg3 { [%clk 0:39:22] } 62. Kxf5 { [%clk 0:17:40] } 62... Kxh4 { [%clk 0:39:45] } 63. Kf4 { [%clk 0:18:05] } 1/2-1/2